[Event "Marshall CC Premier 04-2025"]
[Site "New York"]
[Date "2025.04.05"]
[Round "1.9"]
[White "Dong, Kyle Qiyu"]
[Black "Sukhiashvili, Alexander"]
[Result "1-0"]
[Annotator "RC"]
[ECO "A37"]
[WhiteElo "2006"]
[BlackElo "1911"]
[PlyCount "83"]
[EventDate "2025.01.03"]
[EventType "swiss"]
[EventCountry "USA"]
[SourceTitle "playchess.com"]
[Source "ChessBase"]
[SourceQuality "1"]
[TimeControl "5400+30"]

1. c4 {[%emt 0:00:04]} c5 {[%emt 0:00:02]} 2. g3 {[%emt 0:00:09]} Nc6 {[%emt 0:00:21]} 3. Bg2 {[%emt 0:00:05]} g6 {[%emt 0:00:03]} 4. Nc3 {[%emt 0:00:06]} Bg7 {[%emt 0:00:03]} 5. Nf3 {[%emt 0:00:07]} e6 {[%emt 0:00:23]} 6. d4 {[%emt 0:04:22]} cxd4 {[%emt 0:17:53]} 7. Nb5 {[%emt 0:01:02]} d5 {[%emt 0:00:46]} 8. cxd5 {[%emt 0:01:15]} exd5 {[%emt 0:02:53]} 9. Nbxd4 {[%emt 0:16:08]} Nge7 {[%emt 0:01:57]} 10. O-O {[%emt 0:00:22]} O-O {[%emt 0:00:05]} 11. Be3 {[%emt 0:07:05]} Be6 {[%emt 0:09:53]} 12. Nxc6 {[%emt 0:06:47]} bxc6 {[%emt 0:06:09]} 13. Bd4 {[%emt 0:01:00]} Bxd4 {[%emt 0:06:37]} 14. Nxd4 {[%emt 0:00:34]} c5 {[%emt 0:03:27]} 15. Nxe6 {[%emt 0:00:44]} fxe6 {[%emt 0:00:02]} 16. e4 {[%emt 0:00:02]} d4 {[%emt 0:03:08]} 17. Qg4 {[%emt 0:05:14]} Qb6 {[%emt 0:03:31]} 18. Qg5 {[%emt 0:10:28]} Nc6 {[%emt 0:09:59]} 19. Bh3 {[%emt 0:01:14]} Nb4 {[%emt 0:01:51]} 20. Rac1 {[%emt 0:04:42]} Rac8 {[%emt 0:01:54]} 21. Qe7 {[%emt 0:03:59]} Rfe8 {[%emt 0:00:50]} 22. Qf6 {[%emt 0:04:04]} c4 {[%emt 0:07:13]} 23. Rfd1 {[%emt 0:02:20]} d3 {[%emt 0:00:46]} 24. a3 {[%emt 0:01:27]} Na2 {[%emt 0:11:59]} 25. Rxd3 {[%emt 0:00:37]} Qc6 {[%emt 0:10:25]} 26. Rxc4 {[%emt 0:00:11]} Qxc4 {[%emt 0:00:45]} 27. Rd7 {[%emt 0:00:02]} Qc1+ {[%emt 0:00:24]} 28. Kg2 {[%emt 0:00:03]} Qh6 {[%emt 0:00:26]} 29. Bxe6+ {[%emt 0:00:06]} Rxe6 {[%emt 0:01:15]} 30. Qxe6+ {[%emt 0:31:11]} Kh8 {[%emt 0:00:00]} 31. Qxa2 {[%emt 0:00:00]} Qf8 {[%emt 0:00:26]} 32. Qd5 {[%emt 0:00:00]} Qf6 {[%emt 0:00:32]} 33. e5 {[%emt 0:00:00]} Qf5 {[%emt 0:00:13]} 34. Rd8+ {[%emt 0:00:00]} Rxd8 {[%emt 0:00:05]} 35. Qxd8+ {[%emt 0:00:00]} Kg7 {[%emt 0:00:01]} 36. Qf6+ {[%emt 0:00:00]} Qxf6 {[%emt 0:00:04]} 37. exf6+ {[%emt 0:00:00]} Kxf6 {[%emt 0:00:01]} 38. Kf3 {[%emt 0:00:00]} Ke5 {[%emt 0:00:02]} 39. Ke3 {[%emt 0:00:00]} g5 {[%emt 0:00:02]} 40. f4+ {[%emt 0:00:00]} gxf4+ {[%emt 0:00:03]} 41. gxf4+ {[%emt 0:00:00]} Kf5 {[%emt 0:00:03]} 42. Kf3 {[%emt 0:06:00]} 1-0

[Event "Marshall CC Premier 04-2025"]
[Site "New York"]
[Date "2025.04.05"]
[Round "1.10"]
[White "Zhao, Austin"]
[Black "Schaefer, Sasha Milo"]
[Result "1/2-1/2"]
[Annotator "RC"]
[ECO "B15"]
[WhiteElo "1806"]
[BlackElo "2050"]
[PlyCount "168"]
[EventDate "2025.01.03"]
[EventType "swiss"]
[EventCountry "USA"]
[SourceTitle "playchess.com"]
[Source "ChessBase"]
[SourceQuality "1"]
[TimeControl "5400+30"]

1. e4 {[%emt 0:00:45]} c6 {[%emt 0:00:02]} 2. d4 {[%emt 0:00:07]} d5 {[%emt 0:00:03]} 3. Nc3 {[%emt 0:00:03]} dxe4 {[%emt 0:00:03]} 4. Nxe4 {[%emt 0:00:06]} Nf6 {[%emt 0:00:03]} 5. Nxf6+ {[%emt 0:00:12]} exf6 {[%emt 0:00:05]} 6. c3 {[%emt 0:00:11]} Bd6 {[%emt 0:00:05]} 7. Bd3 {[%emt 0:00:07]} O-O {[%emt 0:00:04]} 8. Qc2 {[%emt 0:00:05]} Re8+ {[%emt 0:00:03]} 9. Ne2 {[%emt 0:00:04]} h5 {[%emt 0:00:16]} 10. Be3 {[%emt 0:00:35]} Nd7 {[%emt 0:00:20]} 11. O-O-O {[%emt 0:00:20]} Nf8 {[%emt 0:00:12]} 12. c4 {[%emt 0:00:25]} Be6 {[%emt 0:00:25]} 13. Nc3 {[%emt 0:01:04]} Rc8 {[%emt 0:00:19]} 14. Ne4 {[%emt 0:04:16]} Be7 {[%emt 0:04:43]} 15. Kb1 {[%emt 0:07:25]} g6 {[%emt 0:12:39]} 16. h3 {[%emt 0:07:08]} b5 {[%emt 0:05:00]} 17. c5 {[%emt 0:06:29]} f5 {[%emt 0:06:25]} 18. Nc3 {[%emt 0:10:07]} Rb8 {[%emt 0:11:28]} 19. Ne2 {[%emt 0:05:14]} Bd5 {[%emt 0:07:37]} 20. Nf4 {[%emt 0:04:02]} h4 {[%emt 0:02:57]} 21. Rhg1 {[%emt 0:07:52]} Ne6 {[%emt 0:01:18]} 22. Nxd5 {[%emt 0:44:53]} Qxd5 {[%emt 0:00:54]} 23. Be2 {[%emt 0:00:00]} f4 {[%emt 0:04:07]} 24. Bf3 {[%emt 0:00:00]} Qd7 {[%emt 0:00:07]} 25. Bc1 {[%emt 0:00:00]} Nxd4 {[%emt 0:04:10]} 26. Bxc6 {[%emt 0:00:00]} Qxc6 {[%emt 0:00:46]} 27. Rxd4 {[%emt 0:00:00]} Qxc5 {[%emt 0:01:19]} 28. Qxc5 {[%emt 0:00:00]} Bxc5 {[%emt 0:00:09]} 29. Rxf4 {[%emt 0:00:00]} Re2 {[%emt 0:01:47]} 30. Rf1 {[%emt 0:00:00]} Be7 {[%emt 0:07:46]} 31. Rf3 {[%emt 0:00:00]} Re8 {[%emt 0:04:14]} 32. Rc3 {[%emt 0:00:00]} Bf6 {[%emt 0:01:43]} 33. Rc2 {[%emt 0:00:00]} Bd4 {[%emt 0:01:10]} 34. Bg5 {[%emt 0:04:26]} Re1+ {[%emt 0:08:33]} 35. Rxe1 {[%emt 0:00:56]} Rxe1+ {[%emt 0:00:09]} 36. Rc1 {[%emt 0:00:04]} Bxf2 {[%emt 0:00:58]} 37. Rxe1 {[%emt 0:00:09]} Bxe1 {[%emt 0:00:04]} 38. Bf6 {[%emt 0:00:28]} Kf8 {[%emt 0:00:43]} 39. Kc2 {[%emt 0:00:09]} Ke8 {[%emt 0:00:10]} 40. Kd3 {[%emt 0:00:43]} Kd7 {[%emt 0:00:17]} 41. Ke4 {[%emt 0:00:27]} Ke6 {[%emt 0:00:19]} 42. Bg5 {[%emt 0:00:21]} f5+ {[%emt 0:02:38]} 43. Kf3 {[%emt 0:00:47]} Bg3 {[%emt 0:00:20]} 44. Be3 {[%emt 0:00:42]} a5 {[%emt 0:01:03]} 45. b3 {[%emt 0:00:43]} Kd5 {[%emt 0:00:38]} 46. Bb6 {[%emt 0:00:51]} a4 {[%emt 0:00:05]} 47. Ba7 {[%emt 0:00:30]} Bd6 {[%emt 0:02:06]} 48. Bf2 {[%emt 0:00:09]} Be7 {[%emt 0:00:46]} 49. Kf4 {[%emt 0:00:19]} Ke6 {[%emt 0:03:19]} 50. Bb6 {[%emt 0:01:09]} g5+ {[%emt 0:01:02]} 51. Ke3 {[%emt 0:00:15]} Kd5 {[%emt 0:01:06]} 52. Kf3 {[%emt 0:00:37]} Ke5 {[%emt 0:02:04]} 53. Bf2 {[%emt 0:00:34]} Kf6 {[%emt 0:01:33]} 54. Bd4+ {[%emt 0:00:24]} Kg6 {[%emt 0:00:26]} 55. Be5 {[%emt 0:00:26]} Kh5 {[%emt 0:00:24]} 56. Bc7 {[%emt 0:00:42]} Ba3 {[%emt 0:00:18]} 57. Be5 {[%emt 0:00:44]} Bc1 {[%emt 0:00:16]} 58. Bd6 {[%emt 0:00:28]} Kg6 {[%emt 0:01:31]} 59. Be5 {[%emt 0:00:20]} Kf7 {[%emt 0:00:19]} 60. Bd4 {[%emt 0:00:22]} Ke6 {[%emt 0:00:06]} 61. Bf2 {[%emt 0:00:14]} Kd5 {[%emt 0:00:23]} 62. Bb6 {[%emt 0:00:11]} Bf4 {[%emt 0:00:46]} 63. Bf2 {[%emt 0:00:35]} Bc7 {[%emt 0:00:43]} 64. Be3 {[%emt 0:00:20]} Bd8 {[%emt 0:00:09]} 65. Bf2 {[%emt 0:00:05]} Kc6 {[%emt 0:00:23]} 66. Bd4 {[%emt 0:00:15]} Kb7 {[%emt 0:00:48]} 67. Be3 {[%emt 0:00:44]} Ka6 {[%emt 0:00:12]} 68. Bd2 {[%emt 0:00:09]} Bf6 {[%emt 0:00:46]} 69. Be1 {[%emt 0:01:23]} Kb6 {[%emt 0:02:08]} 70. Bf2+ {[%emt 0:00:38]} Kc6 {[%emt 0:00:08]} 71. Be3 {[%emt 0:00:13]} axb3 {[%emt 0:00:36]} 72. axb3 {[%emt 0:00:04]} Kd5 {[%emt 0:00:03]} 73. Bb6 {[%emt 0:00:25]} Be7 {[%emt 0:00:51]} 74. Be3 {[%emt 0:00:12]} f4 {[%emt 0:02:48]} 75. Bb6 {[%emt 0:00:14]} Bf6 {[%emt 0:01:02]} 76. Bf2 {[%emt 0:02:08]} b4 {[%emt 0:01:42]} 77. Bb6 {[%emt 0:00:37]} Be7 {[%emt 0:00:23]} 78. Bf2 {[%emt 0:00:38]} Ke5 {[%emt 0:00:36]} 79. Bb6 {[%emt 0:00:17]} Kf5 {[%emt 0:00:10]} 80. Bd4 {[%emt 0:00:21]} Bd6 {[%emt 0:00:33]} 81. Bf2 {[%emt 0:00:26]} Be5 {[%emt 0:00:17]} 82. Bc5 {[%emt 0:00:12]} Bc3 {[%emt 0:00:09]} 83. Bb6 {[%emt 0:00:21]} Bd2 {[%emt 0:00:12]} 84. Bc5 {[%emt 0:00:16]} Ke6 {[%emt 0:00:37]} 1/2-1/2